bitfinex/quotes_BTCUSD_20250723
["timestamp","ask_amount","ask_price","bid_price","bid_amount"]
[1753293006935,4.917e-05,118030.0,118020.0,1.39760198]
[1753293007159,4.917e-05,118030.0,118020.0,1.46522952]
[1753293007160,1e-08,118030.0,118020.0,1.46522952]
[1753293008051,1e-08,118030.0,118020.0,1.09864785]
[1753293008491,1e-08,118030.0,118020.0,1.09964785]
[1753293008936,1e-08,118030.0,118020.0,1.09864785]
[1753293009398,1e-08,118030.0,118020.0,1.46722952]
[1753293010498,1e-08,118030.0,118020.0,1.46822952]
[1753293010758,1e-08,118030.0,118020.0,1.10264785]
[1753293011192,1e-08,118030.0,118020.0,1.16990031]
[1753293013649,1e-08,118030.0,118020.0,1.53548198]
[1753293014550,1e-08,118030.0,118020.0,1.16990031]
[1753293016891,1e-08,118030.0,118020.0,1.53548198]
[1753293021738,1e-08,118030.0,118020.0,1.53248198]
[1753293022181,1e-08,118030.0,118020.0,1.53148198]
[1753293023492,1e-08,118030.0,118020.0,1.53348198]
[1753293023922,1e-08,118030.0,118020.0,1.53148198]
[1753293024592,1e-08,118030.0,118020.0,0.80031864]
[1753293028538,1e-08,118030.0,118020.0,0.85031864]
[1753293029406,1e-08,118030.0,118020.0,0.90031864]
[1753293029623,0.00325,118080.0,118070.0,0.19479881]
[1753293029836,0.00540924,118080.0,118070.0,0.32951881]
[1753293030278,0.00540924,118080.0,118070.0,0.69510048]
[1753293030719,0.00540924,118080.0,118070.0,0.71700048]
[1753293030968,0.00540924,118080.0,118070.0,0.74051048]
[1753293031197,4.924e-05,118080.0,118070.0,1.19056945]
[1753293031411,4.924e-05,118080.0,118070.0,0.82498778]
[1753293031849,4.924e-05,118080.0,118070.0,1.19156945]
[1753293033659,4.924e-05,118080.0,118070.0,0.82598778]
[1753293036093,4.924e-05,118080.0,118070.0,0.4862464]
[1753293036333,4.924e-05,118080.0,118070.0,0.85182807]
[1753293037452,4.924e-05,118080.0,118070.0,1.56030974]
[1753293039298,4.924e-05,118080.0,118070.0,1.19372807]
[1753293039527,4.924e-05,118080.0,118070.0,1.19082807]
[1753293039960,4.924e-05,118080.0,118070.0,1.19074807]
[1753293041300,4.924e-05,118080.0,118070.0,1.19274807]
[1753293044022,0.00520924,118080.0,118070.0,0.19723132]
[1753293044245,0.0553775,118080.0,118070.0,0.21417006]
[1753293044461,0.0723148,118080.0,118070.0,0.58822077]
[1753293044682,0.06384611,118080.0,118070.0,0.58822077]
[1753293045157,0.0723148,118080.0,118070.0,0.58822077]
[1753293045377,0.06384611,118080.0,118070.0,0.58822077]
[1753293045588,0.0723148,118080.0,118070.0,0.3572391]
[1753293045798,0.0723148,118080.0,118070.0,0.72282077]
[1753293046016,0.0723148,118080.0,118070.0,0.58822077]
[1753293046493,0.07231472,118080.0,118070.0,0.58822077]
[1753293046748,0.25862893,118080.0,118070.0,0.55391144]
[1753293046994,0.30755449,118080.0,118070.0,0.17139103]
[1753293047237,0.29908588,118080.0,118070.0,0.002]
[1753293047475,0.68211657,118080.0,118070.0,0.002]
[1753293048192,0.7165349,118080.0,118070.0,0.002]
[1753293048414,0.7165349,118080.0,118070.0,0.001]
[1753293049351,0.21796043,118070.0,118060.0,0.00847026]
[1753293049574,0.25613079,118070.0,118060.0,0.00847026]
[1753293049802,0.26129079,118070.0,118060.0,0.00847026]
[1753293050064,0.03387976,118060.0,118050.0,0.71209448]
[1753293050319,0.24007574,118060.0,118050.0,0.17786584]
[1753293050541,0.01694089,118050.0,118040.0,0.75415095]
[1753293050787,0.19683146,118050.0,118040.0,0.74568033]
[1753293051007,0.23332112,118050.0,118040.0,0.56780921]
[1753293051243,0.22485057,118050.0,118040.0,0.31250579]
[1753293051447,0.22485057,118050.0,118040.0,0.17790579]
[1753293051717,0.21637973,118050.0,118040.0,0.17790579]
[1753293052160,0.21637973,118050.0,118040.0,0.18637742]
[1753293052652,0.19830572,118040.0,118030.0,0.96816671]
[1753293052891,0.27155026,118040.0,118030.0,0.61105746]
[1753293053113,0.26623863,118040.0,118020.0,0.41395126]
[1753293053335,0.02010412,118030.0,118020.0,1.11953322]
[1753293053541,0.0221039,118030.0,118020.0,1.11953322]
[1753293053761,0.0305761,118030.0,118020.0,1.11953322]
[1753293053953,0.0310681,118030.0,118020.0,1.11953322]
[1753293054187,0.03106774,118030.0,118020.0,1.11953322]
[1753293054662,0.03953987,118030.0,118020.0,1.11953322]
[1753293055165,0.21746058,118030.0,118020.0,1.05190568]
[1753293055381,0.01694526,118020.0,118010.0,1.03502598]
[1753293055592,0.02210526,118020.0,118010.0,1.03502598]
[1753293055819,0.00847371,118010.0,118000.0,0.0411]
[1753293056053,0.00847536,117980.0,117970.0,0.20803453]
[1753293056284,0.32623191,117980.0,117970.0,0.0844773]
[1753293056533,0.17802629,117960.0,117950.0,0.0002]
[1753293056771,0.18002629,117960.0,117950.0,0.0002]
[1753293057010,0.01895439,117960.0,117950.0,0.17824139]
[1753293057252,0.19431286,117960.0,117950.0,0.0002]
[1753293057503,0.24549873,117960.0,117950.0,0.00034759]
[1753293057765,0.42305873,117960.0,117950.0,0.00034759]
[1753293058239,0.50853603,117960.0,117950.0,0.00034759]
[1753293058471,0.65653603,117960.0,117950.0,0.00034759]
[1753293058934,0.65753603,117960.0,117950.0,0.00034759]
[1753293059413,0.65753603,117960.0,117950.0,0.17838905]
[1753293059414,0.27513443,117960.0,117950.0,0.17838905]
[1753293059641,0.04056298,117960.0,117950.0,0.19534488]
[1753293059869,0.05751757,117960.0,117950.0,0.20382268]
[1753293060086,0.03208589,117960.0,117950.0,0.21230034]
[1753293060326,0.02460902,117960.0,117950.0,0.21230034]
[1753293060763,0.04056283,117960.0,117950.0,0.21230034]
[1753293060985,0.25015069,117960.0,117950.0,0.17838905]
[1753293061215,0.25015069,117960.0,117950.0,0.00034759]
[1753293061216,0.23319688,117960.0,117950.0,0.00034759]
[1753293061434,0.7164269,117960.0,117950.0,0.00034759]
[1753293061731,1.0010269,117960.0,117950.0,0.00034759]
[1753293061946,1.13791418,117960.0,117950.0,0.00034759]
[1753293062171,0.762658,117960.0,117950.0,0.00034759]
[1753293062378,0.92372998,117960.0,117950.0,0.00034759]
[1753293062801,0.92372998,117960.0,117950.0,0.18686714]
[1753293063022,0.92372998,117960.0,117950.0,0.00034759]
[1753293063444,0.92272998,117960.0,117950.0,0.00034759]
[1753293063661,1.00720728,117960.0,117950.0,0.00034759]
[1753293063871,2.04686,117960.0,117950.0,0.00034759]
[1753293064531,1.55236,117960.0,117950.0,0.00034759]
[1753293064742,1.70236,117960.0,117950.0,0.00034759]
[1753293064951,1.34470728,117960.0,117950.0,0.00034759]
[1753293065168,1.70336,117960.0,117950.0,0.00034759]
[1753293065804,0.96122998,117960.0,117950.0,0.00034759]
[1753293066011,0.91922998,117960.0,117950.0,0.00034759]
[1753293066236,1.3179827,117960.0,117950.0,0.00034759]
[1753293066676,1.08544313,117950.0,117940.0,0.0002]
[1753293066906,0.20401567,117920.0,117910.0,0.0002]
[1753293067116,0.57526297,117920.0,117910.0,0.0002]
[1753293067328,0.57820297,117920.0,117910.0,0.00024917]
[1753293068645,1.31635569,117920.0,117910.0,0.00024917]
[1753293069314,0.95870297,117920.0,117910.0,0.00024917]
[1753293069533,1.40083299,117920.0,117910.0,0.00024917]
[1753293069747,0.10699632,117920.0,117910.0,0.19931232]
[1753293069955,0.43704279,117920.0,117910.0,0.16987006]
[1753293070166,0.43704358,117920.0,117910.0,0.16987006]
[1753293070385,0.45814358,117920.0,117910.0,0.16987006]
[1753293070602,0.45814358,117920.0,117910.0,0.00024917]
[1753293070603,0.528437,117920.0,117910.0,0.00024917]
[1753293070829,1.05768972,117920.0,117910.0,0.00024917]
[1753293071046,1.39668972,117920.0,117910.0,0.00024917]
[1753293071257,1.39668972,117920.0,117900.0,0.0002]
[1753293071258,0.89530353,117910.0,117900.0,0.0002]
[1753293071464,0.98191083,117910.0,117900.0,0.00034776]
[1753293071677,1.06932813,117910.0,117900.0,0.00034776]
[1753293071928,1.0989999,117910.0,117900.0,0.00034776]
[1753293072132,1.2341199,117910.0,117900.0,0.00034776]
[1753293073461,1.2351199,117910.0,117900.0,0.00234776]
[1753293073678,1.2351199,117910.0,117900.0,0.00034776]
[1753293074976,1.5751199,117910.0,117900.0,0.00034776]
[1753293075411,1.6251199,117910.0,117900.0,0.00034776]
[1753293078085,1.59544813,117910.0,117900.0,1e-08]
[1753293078303,0.48441491,117880.0,117870.0,0.06782754]
[1753293078541,0.94341273,117880.0,117870.0,0.06832054]
[1753293079007,0.9760245,117880.0,117870.0,0.06832054]
[1753293079230,0.94635273,117880.0,117870.0,0.06832054]
[1753293079670,1.33367722,117880.0,117870.0,0.000693]
[1753293079902,1.37567722,117880.0,117870.0,0.000693]
[1753293080362,1.35442032,117880.0,117870.0,0.000693]
[1753293080594,1.43279118,117880.0,117870.0,0.000693]
[1753293080821,0.93989846,117880.0,117870.0,0.000693]
[1753293081082,0.680412,117880.0,117870.0,0.000693]
[1753293081303,0.815572,117880.0,117870.0,0.000693]
[1753293081741,0.680412,117880.0,117870.0,0.001693]
[1753293081958,0.530412,117880.0,117870.0,0.01866048]
[1753293082182,0.37485873,117880.0,117870.0,0.21105893]
[1753293082439,0.56476357,117880.0,117870.0,0.23275907]
[1753293082648,0.57031713,117880.0,117870.0,0.022393]
[1753293082867,0.72031713,117880.0,117870.0,0.001693]
[1753293083081,0.87031713,117880.0,117870.0,0.001693]
[1753293083297,0.72031713,117880.0,117870.0,0.1798553]
[1753293083507,0.72031713,117880.0,117870.0,0.001693]
[1753293084170,0.53041229,117880.0,117870.0,0.19682285]
[1753293084388,0.51259229,117880.0,117870.0,0.24124285]
[1753293084608,0.41914859,117880.0,117870.0,0.24972634]
[1753293084821,0.35141085,117880.0,117870.0,0.25820982]
[1753293085029,0.52107506,117880.0,117870.0,0.24124299]
[1753293085252,0.58489876,117880.0,117870.0,0.001693]
[1753293085682,1.09255148,117880.0,117870.0,0.001693]
[1753293085896,1.10743148,117880.0,117870.0,0.001693]
[1753293086108,0.89977876,117880.0,117870.0,0.001693]
[1753293086311,1.03489876,117880.0,117870.0,0.001693]
[1753293086531,1.01744974,117880.0,117870.0,0.001693]
[1753293086741,1.03489876,117880.0,117870.0,0.001693]
[1753293086959,0.89977876,117880.0,117870.0,0.001693]
[1753293087176,1.03489876,117880.0,117870.0,0.001693]
[1753293087645,0.66553229,117880.0,117870.0,0.001693]
[1753293087873,0.51042229,117880.0,117870.0,0.21864285]
[1753293088097,0.23883105,117880.0,117870.0,0.23560982]
[1753293088318,0.25579701,117880.0,117870.0,0.26038982]
[1753293088539,0.26476298,117880.0,117870.0,0.26038982]
[1753293088781,0.23931475,117880.0,117870.0,0.26038982]
[1753293089010,0.23041618,117880.0,117870.0,0.61804254]
[1753293089240,0.21345086,117880.0,117870.0,0.61804254]
[1753293089665,0.21345086,117880.0,117870.0,0.26038982]
[1753293089882,0.22193341,117880.0,117870.0,0.61804254]
[1753293090142,0.21345086,117880.0,117870.0,0.26338982]
[1753293090375,0.21345086,117880.0,117870.0,0.62004254]
[1753293090589,0.22193348,117880.0,117870.0,0.62004254]
[1753293090807,0.22193348,117880.0,117870.0,0.62104254]
[1753293091027,0.21345086,117880.0,117870.0,0.62104254]
[1753293091258,0.22193348,117880.0,117870.0,0.62104254]
[1753293091485,0.23041625,117880.0,117870.0,0.62104254]
[1753293091710,0.22193348,117880.0,117870.0,0.62104254]
[1753293091939,0.32337667,117880.0,117870.0,0.26338982]
[1753293092166,0.50707742,117880.0,117870.0,0.046193]
[1753293092379,0.50707742,117880.0,117870.0,0.2243553]
[1753293092632,0.24999563,117880.0,117870.0,0.234859]
[1753293092827,0.42814274,117880.0,117870.0,0.2263753]
[1753293093049,0.42259997,117880.0,117870.0,0.046193]
[1753293093276,0.65707727,117880.0,117870.0,0.004693]
[1753293093506,0.80707727,117880.0,117870.0,0.004693]
[1753293093730,1.24920729,117880.0,117870.0,0.004693]
[1753293094226,0.89155457,117880.0,117870.0,0.004693]
[1753293094448,1.24920729,117880.0,117870.0,0.000693]
[1753293094681,1.58920729,117880.0,117870.0,0.000693]
[1753293094898,1.58920729,117880.0,117870.0,0.001693]
[1753293095341,1.58920729,117880.0,117870.0,0.000693]
[1753293095795,0.99703727,117880.0,117870.0,0.000693]
[1753293096014,0.86199727,117880.0,117870.0,0.000693]
[1753293096228,0.99703727,117880.0,117870.0,0.000693]
[1753293097315,1.35468999,117880.0,117870.0,0.000693]
[1753293098045,1.19326396,117870.0,117860.0,0.0002]
[1753293098283,1.33295126,117870.0,117860.0,0.0002]
[1753293098520,1.43627525,117870.0,117860.0,0.0002]
[1753293099209,1.46178125,117870.0,117860.0,0.0002]
[1753293099446,0.75412853,117870.0,117860.0,0.0002]
[1753293099668,0.93342807,117870.0,117860.0,0.0002]
[1753293099895,0.93542807,117870.0,117860.0,0.0002]
[1753293100114,0.93742807,117870.0,117860.0,0.0002]
[1753293100362,0.84685077,117870.0,117860.0,0.0002]
[1753293100581,0.98181077,117870.0,117860.0,0.0002]
[1753293100801,0.98381077,117870.0,117860.0,0.0002]
[1753293101692,0.84885077,117870.0,117860.0,0.0002]
[1753293101906,0.44332807,117870.0,117860.0,0.16989285]
[1753293102125,0.55776905,117870.0,117860.0,0.19534626]
[1753293102357,0.07565223,117870.0,117860.0,0.56148311]
[1753293102591,0.23867412,117870.0,117860.0,0.20383039]
[1753293102815,0.07565223,117870.0,117860.0,0.63231065]
[1753293103042,0.07365223,117870.0,117860.0,0.63231065]
[1753293104192,0.07365223,117870.0,117860.0,0.63331065]
[1753293104643,0.07365223,117870.0,117860.0,0.63631065]
[1753293104874,0.07365223,117870.0,117860.0,0.63531065]
[1753293105584,0.07365223,117870.0,117860.0,0.56768311]
[1753293105803,0.07365223,117870.0,117860.0,0.59288738]
[1753293106011,0.07365223,117870.0,117860.0,0.23523466]
[1753293106232,0.07365223,117870.0,117860.0,0.59288738]
[1753293106451,0.07365223,117870.0,117860.0,1.01736468]
[1753293106672,0.07365223,117870.0,117860.0,1.01836468]
[1753293108770,0.07365223,117870.0,117860.0,0.66071196]
[1753293108990,0.07365223,117870.0,117860.0,1.01836468]
[1753293109210,0.07365223,117870.0,117860.0,1.01536468]
[1753293109445,0.07365223,117870.0,117860.0,1.01753468]
[1753293109926,0.4,117900.0,117890.0,0.19509625]
[1753293110174,0.4,117900.0,117890.0,0.55811897]
[1753293110439,0.1348,117920.0,117910.0,0.19506315]
[1753293110676,0.16023989,117920.0,117910.0,0.55271587]
[1753293110901,0.16023989,117920.0,117910.0,0.19506315]
[1753293111127,0.15175971,117920.0,117910.0,0.19506315]
[1753293111359,0.15175964,117920.0,117910.0,0.19506315]
[1753293111821,0.36632736,117920.0,117910.0,0.17810186]
[1753293112080,0.19407125,117920.0,117910.0,0.19506315]
[1753293112307,0.16024017,117920.0,117910.0,0.19506315]
[1753293112530,0.3409771,117920.0,117910.0,0.18658276]
[1753293112750,0.34960613,117920.0,117900.0,0.67903823]
[1753293112975,0.41696172,117910.0,117900.0,0.2035481]
[1753293113204,0.41696129,117910.0,117900.0,0.2035481]
[1753293113468,0.42544219,117910.0,117900.0,0.1950667]
[1753293113658,0.416961,117910.0,117900.0,0.2035481]
[1753293113870,0.4,117910.0,117900.0,0.2035481]
[1753293114081,0.4,117910.0,117900.0,0.56120082]
[1753293114293,0.4,117910.0,117900.0,0.56740082]
[1753293114927,0.4,117910.0,117900.0,0.56420082]
[1753293115135,0.40848046,117910.0,117900.0,0.2065481]
[1753293115350,0.4,117910.0,117900.0,0.2065481]
[1753293115779,0.4,117910.0,117900.0,0.2085481]
[1753293115997,0.17151887,117920.0,117910.0,0.19506315]
[1753293116199,0.18848939,117920.0,117910.0,0.19506315]
[1753293116406,0.40849034,117920.0,117910.0,0.55271587]
[1753293116620,0.4,117920.0,117910.0,0.55271587]
[1753293116836,0.4945,117930.0,117920.0,0.19504661]
[1753293117060,0.34670919,117940.0,117930.0,0.19503007]
[1753293117281,0.20871967,117930.0,117910.0,0.53575407]
[1753293117497,0.35305552,117920.0,117910.0,0.19706365]
[1753293117707,0.35040542,117920.0,117910.0,0.19506365]
[1753293117920,0.35040542,117920.0,117910.0,0.19606365]
[1753293118133,0.34192567,117920.0,117910.0,0.1875829]
[1753293118356,0.34192567,117920.0,117910.0,0.20454433]
[1753293118575,0.40804522,117920.0,117910.0,0.001]
[1753293119006,0.64252252,117920.0,117910.0,0.001]
[1753293120118,0.64252252,117920.0,117910.0,0.003]
[1753293120333,0.64252252,117920.0,117910.0,0.001]
[1753293120542,0.0254442,117900.0,117890.0,0.20357825]
[1753293120760,0.0084819,117890.0,117880.0,0.61189695]
[1753293120986,0.16917233,117900.0,117890.0,0.19509625]
[1753293121212,0.34145816,117900.0,117890.0,0.19509639]
[1753293121417,0.16917233,117900.0,117890.0,0.21206042]
[1753293121631,0.1606902,117900.0,117890.0,0.56971314]
[1753293121921,0.17182215,117900.0,117890.0,0.56971314]
[1753293122148,0.22366066,117900.0,117890.0,0.18661427]
[1753293122374,0.18661405,117890.0,117880.0,0.52930395]
[1753293122597,0.01696553,117880.0,117870.0,0.53510426]
[1753293122814,0.03441333,117890.0,117880.0,0.19511264]
[1753293123033,0.21254533,117890.0,117880.0,0.18114711]
[1753293123251,0.27309491,117890.0,117880.0,0.003]
[1753293123458,0.18663024,117880.0,117870.0,0.19510484]
[1753293123686,0.00848341,117870.0,117860.0,1.11521473]
[1753293123927,0.01696668,117870.0,117860.0,1.0528709]
[1753293124146,0.43441448,117880.0,117870.0,0.19512934]
[1753293124379,0.41744902,117880.0,117870.0,0.55278206]
[1753293124862,0.5348,117880.0,117870.0,0.55583206]
[1753293125299,0.54328262,117880.0,117870.0,0.55583206]
[1753293125524,0.54328269,117880.0,117870.0,0.55783206]
[1753293125768,0.58832069,117880.0,117870.0,0.2056129]
[1753293125996,0.60816145,117880.0,117870.0,0.19712949]
[1753293126222,0.76086005,117880.0,117870.0,0.17167845]
[1753293126457,0.76086005,117880.0,117870.0,0.1801623]
[1753293126685,0.76086005,117880.0,117870.0,0.18864607]
[1753293126892,0.76086005,117880.0,117870.0,0.20561326]
[1753293127113,0.59119599,117880.0,117870.0,0.2086134]
[1753293127386,0.4,117880.0,117870.0,0.57779953]
[1753293127827,0.1692129,117890.0,117880.0,0.2035957]
[1753293128061,0.01744902,117890.0,117880.0,0.56124842]
[1753293128306,0.22122027,117900.0,117890.0,0.18661448]
[1753293128554,0.22122027,117900.0,117890.0,0.19509674]
[1753293128805,0.17813179,117890.0,117880.0,0.18662952]
[1753293129027,0.01696417,117890.0,117880.0,0.18662952]
[1753293129243,0.16024578,117890.0,117880.0,0.18762952]
[1753293129469,0.1348,117890.0,117880.0,0.18762952]
[1753293129688,0.1348,117890.0,117880.0,0.56458224]
[1753293129915,0.1348,117900.0,117890.0,0.20591355]
[1753293130141,0.52891024,117910.0,117900.0,0.1950797]
[1753293130361,0.77385972,117910.0,117900.0,0.2147797]
[1753293130801,0.7653789,117910.0,117900.0,0.2147797]
[1753293131013,0.6293,117910.0,117900.0,0.59193242]
[1753293131884,0.63778046,117910.0,117900.0,0.59193242]
[1753293132307,0.66346023,117910.0,117900.0,0.2342797]
[1753293132565,0.8772022,117910.0,117900.0,0.1781169]
[1753293132808,0.64674902,117910.0,117900.0,0.21477963]
[1753293133029,0.64674902,117910.0,117900.0,0.23567963]
[1753293133238,0.1348,117920.0,117910.0,0.23566315]
[1753293133448,0.16023952,117920.0,117910.0,0.59331587]
[1753293133666,0.17768854,117920.0,117910.0,0.59331587]
[1753293133910,0.1946897,117920.0,117910.0,0.59331587]
[1753293134132,0.1862096,117920.0,117910.0,0.23566315]
[1753293134349,0.16924975,117920.0,117910.0,0.23566315]
[1753293134561,0.16072869,117920.0,117910.0,0.23566315]
[1753293135000,0.15224902,117920.0,117910.0,0.59331587]
[1753293135461,1.01534888,117940.0,117930.0,0.0084796]
[1753293135462,0.39668444,117940.0,117930.0,0.0084796]
[1753293135690,0.57322195,117940.0,117920.0,0.53573905]
[1753293135918,0.04553698,117930.0,117920.0,0.23574611]
[1753293136139,0.06249547,117930.0,117920.0,0.23574661]
[1753293136364,0.22663857,117930.0,117920.0,0.20606693]
[1753293136589,0.22398877,117930.0,117920.0,0.21454689]
[1753293136836,0.03743714,117930.0,117920.0,0.22302671]
[1753293137063,0.29397643,117930.0,117920.0,0.21454689]
[1753293137288,0.13021382,117930.0,117920.0,0.22302671]
[1753293137514,0.10742531,117930.0,117920.0,0.22302671]
[1753293137738,0.10742531,117930.0,117920.0,0.24272671]
[1753293137945,0.09894614,117930.0,117920.0,0.24272671]
[1753293138167,0.11287448,117930.0,117920.0,0.24272671]
[1753293138390,0.10439524,117930.0,117920.0,0.24272671]
[1753293138622,0.03540707,117930.0,117920.0,0.24272671]
[1753293138833,0.03540722,117930.0,117920.0,0.24272671]
[1753293139100,0.01744902,117930.0,117920.0,0.24272671]
[1753293139295,0.03440714,117930.0,117920.0,0.6023495]
[1753293139508,0.02592797,117930.0,117920.0,0.2531766]
[1753293139718,0.03440714,117930.0,117920.0,0.2531766]
[1753293139942,0.22095811,117930.0,117920.0,0.23621689]
[1753293140168,0.21443916,117930.0,117920.0,0.36249701]
[1753293140662,0.29333148,117930.0,117920.0,0.0195]
[1753293140857,0.01695956,117920.0,117910.0,0.72887587]
[1753293141102,0.00847967,117920.0,117910.0,0.73084587]
[1753293141337,0.12722824,117930.0,117920.0,0.24402664]
[1753293141537,0.21512875,117930.0,117920.0,0.23751696]
[1753293141760,0.21443888,117930.0,117920.0,0.23751696]
[1753293141984,0.20898985,117930.0,117920.0,0.19070651]
[1753293142208,0.03939715,117930.0,117920.0,0.21614661]
[1753293142417,0.05900572,117930.0,117920.0,0.23751661]
[1753293142636,0.04484639,117930.0,117920.0,0.23751661]
[1753293142845,0.05332578,117930.0,117920.0,0.23751675]
[1753293143062,0.03636715,117930.0,117920.0,0.60364929]
[1753293143278,0.20399942,117930.0,117920.0,0.60364929]
[1753293143482,0.21247938,117930.0,117920.0,0.04247]
[1753293143699,0.18656693,117920.0,117910.0,0.70412855]
[1753293143973,0.58656693,117920.0,117910.0,0.35692673]
[1753293144219,0.41696013,117920.0,117910.0,0.37388809]
[1753293144408,0.40847967,117920.0,117910.0,0.74307135]
[1753293144849,0.04288711,117930.0,117920.0,0.18656665]
[1753293145067,0.00868523,117940.0,117930.0,0.23682993]
[1753293145320,0.00847824,117940.0,117930.0,0.57101485]
[1753293145512,0.02543736,117930.0,117920.0,0.32980625]
[1753293145717,0.61871532,117940.0,117930.0,0.21493029]
[1753293145927,0.62912803,117940.0,117930.0,0.21493029]
[1753293146134,0.44259237,117940.0,117930.0,0.22340939]
[1753293146360,0.14626694,117960.0,117950.0,0.194997]
[1753293146576,0.64924267,117970.0,117960.0,0.19498046]
[1753293146779,0.83768995,117970.0,117960.0,0.54415624]
[1753293146993,0.83774907,117970.0,117960.0,0.17802636]
[1753293147198,0.84672179,117970.0,117960.0,0.17802636]
[1753293147413,0.87459362,117970.0,117960.0,0.18650359]
[1753293147616,0.0084773,117960.0,117950.0,0.71843134]
[1753293147824,0.01043723,117960.0,117950.0,0.72887886]
[1753293148029,0.00847701,117960.0,117950.0,0.72887886]
[1753293148246,0.86415725,117970.0,117960.0,0.16954899]
[1753293148455,0.01695417,117960.0,117950.0,0.71843148]
[1753293148681,0.27294089,117960.0,117950.0,0.35230153]
[1753293148893,0.28444819,117960.0,117950.0,0.35230153]
[1753293149100,0.27597096,117960.0,117950.0,0.16313816]
[1753293149308,0.29341998,117960.0,117950.0,0.00847816]
[1753293149724,0.01695568,117950.0,117940.0,0.59395308]
[1753293149941,0.18847934,117950.0,117940.0,0.35407656]
[1753293150158,0.19150934,117950.0,117940.0,0.3625553]
[1753293150373,0.1999875,117950.0,117940.0,0.37951249]
[1753293150602,0.02194597,117950.0,117940.0,0.37951249]
[1753293150841,0.03440312,117960.0,117950.0,0.21499714]
[1753293151063,0.22286621,117960.0,117950.0,0.5863422]
[1753293151285,0.21438984,117960.0,117950.0,0.5863422]
[1753293151757,0.26377364,117960.0,117950.0,0.5863422]
[1753293151968,0.26377364,117960.0,117950.0,0.22868948]
[1753293152195,0.24681925,117960.0,117950.0,0.02]
[1753293152403,0.20347488,117950.0,117940.0,0.57620928]
[1753293152611,0.20543538,117950.0,117940.0,0.37023397]
[1753293152823,0.03587201,117950.0,117940.0,0.38916095]
[1753293153029,0.49529408,117960.0,117950.0,0.21629685]
[1753293153246,0.45650765,117960.0,117950.0,0.23771685]
[1753293153466,0.4,117960.0,117950.0,0.59536957]
[1753293153689,0.51151185,117970.0,117960.0,0.23688046]
[1753293153690,0.5030352,117970.0,117960.0,0.23688046]
[1753293153902,0.5030352,117970.0,117960.0,0.73127318]
[1753293154129,0.5030352,117970.0,117960.0,0.73424318]
[1753293154130,0.9030352,117970.0,117960.0,0.73424318]
[1753293154336,0.91151128,117970.0,117960.0,0.73127318]
[1753293154553,0.78755622,117970.0,117960.0,0.18145858]
[1753293154771,0.77908007,117970.0,117950.0,0.23689707]
[1753293154993,0.5051552,117970.0,117960.0,0.69785048]
[1753293155206,0.5030352,117970.0,117960.0,0.73855048]
[1753293155664,0.53354402,117970.0,117960.0,0.73653048]
[1753293155906,0.5030352,117970.0,117960.0,0.73855048]
[1753293156113,0.5030352,117970.0,117960.0,0.74152048]
[1753293156787,0.5030352,117970.0,117960.0,0.73855048]
[1753293157443,0.4945,117970.0,117960.0,0.73855048]
[1753293157661,0.51145252,117970.0,117960.0,0.73855048]
[1753293157882,0.51145245,117970.0,117960.0,0.73855048]
[1753293158120,0.50297615,117970.0,117960.0,0.73855048]
[1753293158342,0.50297615,117970.0,117960.0,0.73955048]
[1753293158794,0.4945,117970.0,117960.0,0.73955048]
[1753293159024,0.4945,117970.0,117960.0,1.16699778]
[1753293159284,0.08298736,117980.0,117970.0,0.57576393]
[1753293159500,0.008,117980.0,117970.0,1.01991395]
[1753293159719,0.008,117980.0,117970.0,1.02288395]
[1753293161656,0.008,117980.0,117970.0,0.93543665]
[1753293161899,0.008,117980.0,117970.0,1.07043665]
[1753293162591,0.01647543,117980.0,117970.0,1.07043665]
[1753293163016,0.408,117980.0,117970.0,1.07043665]
[1753293163244,0.008,117980.0,117970.0,1.07043665]
[1753293163488,0.008,117980.0,117970.0,1.07340665]
[1753293163974,0.008,117980.0,117970.0,1.15788395]
[1753293164228,0.008,117980.0,117970.0,1.15586395]
[1753293166885,0.008,117980.0,117970.0,1.15788395]
[1753293167415,0.008,117980.0,117970.0,1.16640005]
[1753293168585,0.008,117980.0,117970.0,1.03140005]
[1753293168810,0.008,117980.0,117970.0,1.16608005]
[1753293169025,0.008,117980.0,117970.0,1.03140005]
[1753293169236,0.008,117980.0,117970.0,1.15756395]
[1753293169448,0.008,117980.0,117970.0,1.02288395]
[1753293169674,0.008,117980.0,117970.0,1.15756395]
[1753293171062,0.01012,117980.0,117970.0,1.07011665]
[1753293171309,0.008,117980.0,117970.0,1.07011665]
[1753293172205,0.008,117980.0,117970.0,0.93543665]
[1753293172431,0.008,117980.0,117970.0,1.15752395]
[1753293174589,0.00888381,118020.0,118000.0,0.59356709]
[1753293174842,0.00252,118020.0,118010.0,0.70986287]
[1753293175091,0.40252,118020.0,118010.0,0.72911058]
[1753293175322,0.40252,118020.0,118010.0,0.75459965]
[1753293176183,0.42793775,118020.0,118010.0,0.73529965]
[1753293176401,0.41099249,118020.0,118010.0,0.73529965]
[1753293176615,0.41099249,118020.0,118010.0,0.73629965]
[1753293177034,0.40252,118020.0,118010.0,0.73629965]
[1753293177688,0.40252,118020.0,118010.0,0.75709965]
[1753293177908,0.4004,118020.0,118010.0,0.75709965]
[1753293178785,0.40252,118020.0,118010.0,0.75709965]
[1753293180136,0.42242534,118020.0,118010.0,0.35702693]
[1753293180358,0.67566528,118020.0,118010.0,0.002]
[1753293180585,0.7961716,118020.0,118010.0,0.002]
[1753293180805,1.0961716,118020.0,118010.0,0.002]
[1753293181029,0.6961716,118020.0,118010.0,0.002]
[1753293181250,0.63359489,118020.0,118010.0,0.002]
[1753293181470,0.63359489,118020.0,118010.0,0.001]
[1753293181697,0.48359489,118020.0,118010.0,0.001]
[1753293181923,0.12352632,118020.0,118010.0,0.24557855]
[1753293182189,0.22416307,118020.0,118010.0,0.75481862]
[1753293182433,0.04622771,118020.0,118010.0,0.34648563]
[1753293182664,0.22681142,118020.0,118010.0,0.3464852]
[1753293182919,0.22416393,118020.0,118010.0,0.3464852]
[1753293183374,0.18642451,118010.0,118000.0,0.16949035]
[1753293183596,0.00847392,118000.0,117990.0,0.56420762]
[1753293183820,0.42002792,118000.0,117990.0,0.69813748]
[1753293184036,0.40308,118000.0,117990.0,0.69813748]
[1753293184256,0.4,118000.0,117990.0,0.74062748]
[1753293184467,0.4,118000.0,117990.0,0.60354748]
[1753293184683,0.4,118000.0,117990.0,0.74058748]
[1753293184904,0.4,118000.0,117990.0,0.74369748]
[1753293185124,0.0004,118020.0,118010.0,0.19489786]
[1753293185351,0.0004,118020.0,118010.0,0.73194058]
[1753293185563,0.41942526,118020.0,118010.0,0.73194058]
[1753293186015,0.41095256,118020.0,118010.0,0.75713082]
[1753293186270,0.0004,118020.0,118010.0,1.18272812]
[1753293186503,0.22763644,118080.0,118070.0,0.02540778]
[1753293186756,0.19348,118080.0,118070.0,0.68961153]